Cogmind - Beta 17 @@@ ROGUE MODE // 2026.07.03 @ 03:17:36 Player: KURIIRI Result: Self-destructed Performance ------------- Evolutions (5) 2500 Regions Visited (14) 2800 Robots Destroyed (238) 1190 Value Destroyed (7950) 7950 Prototype IDs (40) 800 Alien Tech Used (0) 0 Bonus (3385) 3385 TOTAL SCORE: 18625 Bonus ------- High Alert Combat Kills 197 Follower Combat Kills 124 Delivered SUBCON Basin 2000 Registered with UFD 300 Met Optimus in HQ 500 Met Imprinter 300 Friendly Fire -36 Cogmind --------- Core Integrity 312/1000 Matter 281/300 Energy 150/150 System Corruption 6% Temperature Cool (0) Movement Hovering (220) Ox2 Location -5/Factory Parts ------- > --- POWER (2) -------- Micro Fission Core > --- PROPULSION (6) --- Combat Gravmag System Combat Gravmag System > --- UTILITY (7) ------ Advanced Cooling System Large Storage Unit Enhanced Optical Array Advanced Signal Interpreter Advanced Targeting Computer Advanced System Shield Hacking Drone Bay (1/1) > --- WEAPON (2) ------- Powered Hammer > --- INVENTORY (15) --- Micro Antimatter Reactor Combat Linear Gravjet Matter Compressor (250) Experimental Sensor Array Tactical Coordination Suite A0-MCA's Component Scanner Enhanced Gauss Cannon Hypervelocity Mass Driver Guided Missile Launcher Improved Plasma Cutter Multitool Peak State ------------ > --- POWER ------------ Light Angular Momentum Engine Micro Fission Core > --- PROPULSION ------- Antigrav System Antigrav System Antigrav System Combat Gravmag System Combat Gravmag System Combat Gravmag System > --- UTILITY ---------- Large Storage Unit Enhanced Optical Array Experimental Sensor Array Advanced Signal Interpreter Advanced Targeting Computer Advanced System Shield Hacking Drone Bay > --- WEAPON ----------- Hypervelocity Mass Driver Powered Hammer > --- INVENTORY -------- Neutrino Core Micro Antimatter Reactor Antigrav System Combat Linear Gravjet Matter Compressor Tactical Coordination Suite Improved Medium Armor Plating A0-MCA's Component Scanner Enhanced Gauss Cannon Hypervelocity Mass Driver Guided Missile Launcher Improved Plasma Cutter Multitool [Rating: 104] Favorites ----------- Power Subdweller Power Source Engine Subdweller Power Source Power Core Micro Nuclear Core Reactor Cold Fusion Reactor Propulsion Combat Gravmag System Treads Light Treads Leg Aluminum Leg Wheel Wheel Hover Unit Combat Gravmag System Flight Unit Improved Flight Unit Utility Large Storage Unit Device Experimental Sensor Array Storage Large Storage Unit Processor Tech Extrapolator Hackware Advanced System Shield Protection Improved Medium Armor Plating Weapon Hypervelocity Gauss Cannon Energy Gun Heavy EM Pulse Gun Energy Cannon Subdweller Beam Cannon Ballistic Gun Heavy Assault Rifle Ballistic Cannon Hypervelocity Gauss Cannon Launcher Grenade Launcher Special Weapon Multitool Impact Weapon Powered Hammer Slashing Weapon Makeshift Sword Special Melee Weapon Improved Datajack Build | -11 -10 -10 -8 -8 -6 -6 -6 -6 -6 -6 -5 -5 -5 -5 ------- Run | Yrd Mat Sub Rec Scr Fac Was Fac Low Low Zio Pro Fac Was Fac Slots Evolved 10 | . . . . . 8 . . . . . . 2 . . Power 1 | . . . . . . . . . . . . 1 . . Propulsion 4 | . . . . . 3 . . . . . . 1 . . Utility 5 | . . . . . 5 . . . . . . . . . Weapon . | . . . . . . . . . . . . . . . Parts Attached 104 | 4 12 16 . 6 29 . 5 1 . 4 1 16 1 9 Power 15 | . 1 2 . 2 3 . 1 . . . . 4 . 2 Engine 7 | . 1 2 . 2 1 . . . . . . 1 . . Core 7 | . . . . . 1 . 1 . . . . 3 . 2 Reactor 1 | . . . . . 1 . . . . . . . . . Propulsion 34 | 2 1 5 . . 10 . 2 1 . . 1 7 . 5 Treads 4 | 2 . 1 . . 1 . . . . . . . . . Leg . | . . . . . . . . . . . . . . . Wheel 7 | . 1 4 . . 2 . . . . . . . . . Hover 23 | . . . . . 7 . 2 1 . . 1 7 . 5 Flight . | . . . . . . . . . . . . . . . Utility 28 | 1 2 3 . 3 10 . 2 . . 3 . 3 . 1 Device 11 | 1 . 1 . 1 4 . . . . 1 . 2 . 1 Storage 3 | . 1 1 . 1 . . . . . . . . . . Processor 5 | . . . . 1 3 . 1 . . . . . . . Hackware 4 | . . . . . 2 . . . . 1 . 1 . . Protection 5 | . 1 1 . . 1 . 1 . . 1 . . . . Artifact . | . . . . . . . . . . . . . . . Weapon 27 | 1 8 6 . 1 6 . . . . 1 . 2 1 1 Energy Gun 4 | . 3 . . . 1 . . . . . . . . . Energy Cannon 3 | . . 2 . 1 . . . . . . . . . . Ballistic Gun 7 | 1 4 2 . . . . . . . . . . . . Ballistic Cannon 6 | . . . . . 2 . . . . . . 2 1 1 Launcher 3 | . 1 1 . . . . . . . 1 . . . . Special Weapon 1 | . . . . . 1 . . . . . . . . . Impact Weapon 1 | . . . . . 1 . . . . . . . . . Slashing Weapon 1 | . . 1 . . . . . . . . . . . . Piercing Weapon . | . . . . . . . . . . . . . . . Special Melee Weapon 1 | . . . . . 1 . . . . . . . . . Unidentified Prototypes 6 | . . . . 1 3 . . . . 2 . . . . Parts Lost 35 | . 4 4 . . 1 2 . . . . 1 9 . 14 Power 8 | . 1 2 . . . . . . . . . 2 . 3 Propulsion 16 | . 1 1 . . . . . . . . 1 4 . 9 Utility 6 | . 1 1 . . 1 1 . . . . . 1 . 1 Weapon 5 | . 1 . . . . 1 . . . . . 2 . 1 Highest Loss Streak 5 | . 1 2 . . 1 2 . . . . 1 5 . 3 To Critical Strikes 1 | . . 1 . . . . . . . . . . . . Average Backups 11 | 5 10 6 19 11 14 14 13 14 13 12 12 11 13 12 Power . | 1 . . 1 . 1 2 2 2 2 1 1 . 1 1 Propulsion 1 | 4 1 1 6 2 . 1 . 1 1 1 1 . 1 1 Utility 5 | . 3 1 5 4 7 7 8 8 7 8 9 7 5 4 Weapon 2 | . 4 3 4 2 2 2 1 1 . . . 1 3 3 Tool/Special . | . . . . . . . . . . . . . . . Unused Backups 38 | . . 8 1 8 4 . 2 1 2 2 . 2 1 7 Power 3 | . . . . . . . 1 . . . . 1 . 1 Propulsion 5 | . . . . 4 . . . . . . . . . 1 Utility 20 | . . 4 1 2 3 . 1 1 2 1 . 1 1 3 Weapon 8 | . . 4 . 2 1 . . . . . . . . 1 Tool/Special 2 | . . . . . . . . . . 1 . . . 1 Average Slot Usage (%) 86 | . 97 85 82 72 85 91 94 100 100 99 95 83 99 92 Engine 5 | . 12 13 14 5 2 . . . . . . . 5 2 Core 4 | . . . . 7 2 6 6 6 6 6 6 4 5 6 Treads 3 | . 24 9 . . . . . . . . . . . . Wheel 10 | . 3 18 28 19 9 . . . . . . . . . Hover 12 | . . . . . 13 28 32 33 33 33 28 25 35 30 Device 3 | . 4 1 . 1 5 6 6 6 6 6 6 4 5 5 Storage 8 | . 14 7 14 12 6 6 6 6 6 6 6 5 5 5 Processor 12 | . . . . 7 22 26 26 26 26 26 26 19 17 17 Hackware 1 | . . . . . 1 . . . . 2 6 8 11 5 Protection 3 | . 9 6 . . 5 4 1 6 6 2 . . . 2 Energy Gun 1 | . 16 . . . . . . . . . . . . . Energy Cannon 6 | . . 10 25 16 2 . . . . . . . . . Ballistic Gun 1 | . 6 6 . . . . . . . . . . . . Ballistic Cannon 2 | . . . . . 6 3 5 6 6 5 5 4 4 5 Impact Weapon 1 | . . . . . . 6 6 6 6 6 5 4 5 3 Slashing Weapon 1 | . . 10 . . 1 . . . . . . . . . Peak Build Rating 104 | 7 11 36 34 35 82 81 81 81 82 84 83 100 101 104 Average Rating 47 | 6 8 19 33 21 69 74 76 80 80 81 82 81 100 91 On Entrance 57 | 6 7 11 34 13 35 80 59 81 80 82 83 83 100 101 Avg Prop Armor Cover (%) 5 | . 9 8 . 5 6 . . . . . . 3 2 2 Naked Turns . | . . . . . . . . . . . . . . . Heaviest Build 221 | 15 32 221 221 205 72 52 47 47 47 47 40 48 50 63 Greatest Support 75 | 40 40 30 30 30 72 52 54 55 55 55 56 75 61 66 Greatest Overweight (x) 21 | . 3 21 7 20 7 . . . . . . 1 . 2 Average Overweight (x) 1 | . . 4 6 4 . . . . . . . . . . Largest Inventory Capacity 35 | 8 15 35 35 35 15 15 15 15 15 15 15 15 15 15 Average Capacity 17 | 8 14 18 35 21 15 15 15 15 15 15 15 15 15 15 Most Carried 35 | 6 15 35 35 21 15 15 15 15 15 15 15 15 15 15 Average Carried 13 | 5 10 12 34 12 14 14 13 15 14 14 14 13 14 13 Final Capacity 35 | 8 15 35 35 15 15 15 15 15 15 15 15 15 15 15 Final Carried 35 | 4 13 35 21 15 14 15 15 15 15 15 15 15 15 12 Transmogrified Parts 10 | . . . . 10 . . . . . . . . . . Integrity Recovered 93 | . . . . 93 . . . . . . . . . . Class Distribution -------------------- 33% | Mutant 22% | Scout 18% | Hauler-Mutant 7% | Subdweller-Mutant 5% | Hacker-Scout 3% | Machinist-Scout Dominant Class ---------------- Mutant | -10/Materials Subdweller-Mutant | -10/Subcaves Hauler-Mutant | -8/Recycling Mutant | -8/Scraptown Mutant | -6/Factory Machinist-Scout | -6/Waste Scout | -6/Factory Scout | -6/Lower Caves Scout | -6/Lower Caves Scout | -6/Zion Scout | -5/Proximity Caves Hacker-Scout | -5/Factory Hacker-Scout | -5/Waste Scavenger-Mutant | -5/Factory Resources | -11 -10 -10 -8 -8 -6 -6 -6 -6 -6 -6 -5 -5 -5 -5 ----------- Run | Yrd Mat Sub Rec Scr Fac Was Fac Low Low Zio Pro Fac Was Fac Matter Collected 7700 | 256 317 669 18 67 1765 . 822 8 198 71 744 1277 275 1213 Remotely . | . . . . . . . . . . . . . . . Salvage Created 10090 | 287 751 678 . . 2826 . 1279 35 88 . 510 1653 230 1753 Parts 415 | 24 45 55 . . 97 . 33 . 5 . 11 67 . 78 Haulers Intercepted 5 | . 2 . . . 2 . 1 . . . . . . . Recyclers Shooed 13 | . 2 . . . 4 . 2 . . . . 2 . 3 Parts Field Recycled . | . . . . . . . . . . . . . . . Retrieved Matter . | . . . . . . . . . . . . . . . Parts Self-Destructed 28 | . . 7 . . . . . . 5 . 16 . . . Prevented 6 | . . . . . . . . . . . 6 . . . Parts Restored . | . . . . . . . . . . . . . . . Kills | -11 -10 -10 -8 -8 -6 -6 -6 -6 -6 -6 -5 -5 -5 -5 ------- Run | Yrd Mat Sub Rec Scr Fac Was Fac Low Low Zio Pro Fac Was Fac Combat Hostiles Destroyed 148 | . 19 16 . . 23 . 11 . 2 . 14 34 . 29 Melee 17 | . . 6 . . 1 . 1 . . . 1 8 . . Guns 18 | . 15 3 . . . . . . . . . . . . Cannons 72 | . . 2 . . 20 . 9 . 2 . 6 14 . 19 AOE 30 | . 4 5 . . . . . . . . 5 7 . 9 Classes Destroyed 18 | 3 4 2 . . 6 . 1 1 . . . 1 . . Worker 24 | 2 . . . . 9 . 3 . . . . 5 . 5 Builder 7 | . . . . . . . . . . . . 3 . 4 Tunneler 10 | 9 . . . . 1 . . . . . . . . . Hauler 5 | . 2 . . . 2 . 1 . . . . . . . Recycler 17 | 1 . . . . 8 . 5 . . . . 1 . 2 Minesweeper 2 | . . . . . . . . 1 . . 1 . . . Mechanic 4 | . . . . . 1 . 1 . . . . 1 . 1 Operator 6 | . . . . . 3 . . . . . . 1 . 2 Turret 1 | . . 1 . . . . . . . . . . . . Watcher 14 | . 3 . . . 3 . 3 . . . . 2 . 3 Swarmer 39 | . 6 4 . . . . 3 . . . 5 15 . 6 Grunt 56 | . 13 1 . . 13 . 4 . . . 6 6 . 13 Brawler 5 | . . . . . . . 1 . . . 1 2 . 1 Duelist 4 | . . . . . 1 . . . . . 2 1 . . Sentry 10 | . . . . . 3 . . . 1 . . 3 . 3 Hunter 5 | . . . . . 2 . 1 . . . . 1 . 1 Programmer 18 | . . . . . 4 . 2 . 1 . . 6 . 5 Subdweller 11 | . . 11 . . . . . . . . . . . . Best Kill Streak 10 | 4 4 4 . . 6 . 6 1 1 . 3 6 . 10 Combat Bots Only 8 | . 3 4 . . 3 . 4 . 1 . 3 5 . 8 Max Kills in Single Turn 6 | 1 1 4 . . 2 . 2 1 1 . 2 3 . 6 Gunslinging . | . . . . . . . . . . . . . . . Exploded 4 | . 1 4 . . . . . . . . 2 2 . 2 Melee 1 | . . 1 . . 1 . 1 . . . 1 1 . . Uniques/NPCs Destroyed . | . . . . . . . . . . . . . . . Combat | -11 -10 -10 -8 -8 -6 -6 -6 -6 -6 -6 -5 -5 -5 -5 -------- Run | Yrd Mat Sub Rec Scr Fac Was Fac Low Low Zio Pro Fac Was Fac Hostile Shots Fired 687 | . 93 75 . . 103 2 39 . 13 . 15 188 . 159 Missed 237 | . 23 27 . . 34 . 21 . 5 . 8 60 . 59 Hits 450 | . 70 48 . . 69 2 18 . 8 . 7 128 . 100 Melee 5 | . . . . . . 2 . . . . . 1 . 2 Projectile 445 | . 70 48 . . 69 . 18 . 8 . 7 127 . 98 AOE 3 | . . . . . . . . . . . . . . 3 Critical Strikes 13 | . . 2 . . 1 . . . 2 . . 2 . 6 Part Disruptions 4 | . . . . . 1 . . . . . . 2 . 1 Damage Taken 7772 | . 911 927 . . 1035 85 284 . 100 . 144 2164 . 2122 Core 1082 | . 123 80 . . 89 . 52 . . . 50 265 . 423 Absorbed by Shields 104 | . . . . . 104 . . . . . . . . . Regen/Repaired (Parts) 1008 | . 131 . . . 144 . . . . 378 . 355 . . Core Remaining (%) 65 | 100 . . . 18 . . . . . . 77 . . . Volleys Fired 559 | 21 65 55 1 . 87 . 54 . 13 . 74 93 15 81 Largest 2 | 2 2 2 2 . 2 . 1 . 1 . 1 2 1 2 Hottest 160 | 90 90 80 160 . 120 . 51 . 51 . 51 102 56 112 Shots Fired 763 | 42 114 82 2 . 149 . 55 1 14 . 74 99 15 116 Gun 210 | 42 104 64 . . . . . . . . . . . . Cannon 515 | . . 13 2 . 149 . 55 1 14 . 63 94 15 109 Launcher 38 | . 10 5 . . . . . . . . 11 5 . 7 Special . | . . . . . . . . . . . . . . . Kinetic 574 | 8 37 64 . . 114 . 55 1 14 . 63 94 15 109 Thermal 107 | 21 36 13 2 . 35 . . . . . . . . . Explosive 34 | . 10 1 . . . . . . . . 11 5 . 7 Electromagnetic 48 | 13 31 4 . . . . . . . . . . . . Robot Hit Streak 20 | 7 7 20 3 . 11 . 11 . 6 . 11 8 11 14 Robot Miss Streak 5 | 2 5 1 1 . 5 . 2 . 2 . 4 5 1 3 Penetration Max 2 | . . . . . 1 . 2 . . . 1 1 . 1 Secondary Targets 2 | . 2 . . . . . . . . . . . . . Max Gunslinging Chain 1 | . 1 . . . . . . . . . . . . . Shots Hit Robots 579 | 23 68 58 1 . 132 1 49 1 9 . 52 98 14 73 Core Hits 325 | 13 41 21 . . 58 . 23 . 3 . 31 63 1 71 Critical Kills 78 | . . 1 . . 16 . 13 . 2 . 5 15 1 25 Critical Parts Destroyed 134 | . . . . . 25 . 18 . 5 . 14 34 1 37 Critical Strikes 230 | . 2 1 . . 45 . 31 . 7 . 19 51 11 63 Burn 2 | . 2 . . . . . . . . . . . . . Meltdown 1 | . . . . . 1 . . . . . . . . . Destroy 210 | . . 1 . . 41 . 29 . 7 . 16 43 11 62 Smash 15 | . . . . . 1 . 2 . . . 3 8 . 1 Sever 2 | . . . . . 2 . . . . . . . . . Melee Attacks 295 | . . 53 . . 76 1 35 10 6 1 19 72 . 22 Impact 189 | . . . . . 23 1 35 10 6 1 19 72 . 22 Slashing 105 | . . 53 . . 52 . . . . . . . . . Piercing . | . . . . . . . . . . . . . . . Sneak Attacks 42 | . . 1 . . 24 . 8 1 . . . 7 . 1 Combat Hostiles 1 | . . 1 . . . . . . . . . . . . Follow-up Attacks . | . . . . . . . . . . . . . . . Damage Inflicted 20720 | 338 1292 2112 28 . 4677 43 1661 127 169 . 1536 4014 254 4469 Guns 1540 | 304 908 328 . . . . . . . . . . . . Cannons 7142 | . . 306 28 . 1946 . 836 . 169 . 648 1243 254 1712 Explosions 4494 | 34 357 337 . . . . . . . . 488 793 . 2485 Melee 7505 | . . 1141 . . 2731 43 825 127 . . 400 1966 . 272 Ramming 39 | . 27 . . . . . . . . . . 12 . . Kinetic 7159 | 73 316 600 . . 1308 . 836 . 169 . 648 1243 254 1712 Thermal 2376 | 149 360 306 28 . 638 . . . . . . 25 . 870 Explosive 3018 | . 357 65 . . . . . . . . 488 564 . 1544 Electromagnetic 623 | 116 232 . . . . . . . . . . 204 . 71 Impact 4650 | . . . . . 1017 43 825 127 . . 400 1966 . 272 Slashing 2855 | . . 1141 . . 1714 . . . . . . . . . Piercing . | . . . . . . . . . . . . . . . Highest Corruption 13 | . 1 1 1 . 1 11 12 12 13 13 . 5 . 6 Average Corruption 3 | . 1 1 1 . 1 8 11 12 12 13 . 3 . 4 Corruption Purged 5 | . . . . . . . . . . . . 5 . . Corruption Blocked . | . . . . . . . . . . . . . . . Effects 135 | . 10 23 3 . 8 4 31 16 20 . . 17 . 3 Message Errors 33 | . 3 5 . . 3 1 8 4 5 . . 4 . . Matter Fused 34 | . . 5 1 . 4 1 7 3 8 . . 3 . 2 Heat Flow Errors 14 | . 2 6 1 . . . 1 3 . . . 1 . . Energy Discharges 17 | . 3 2 . . . . 4 3 . . . 5 . . Parts Rejected 5 | . 1 . . . 1 . 2 . . . . 1 . . Parts Fused 5 | . . 1 . . . . 4 . . . . . . . Data Loss (minor) 13 | . 1 2 . . . . 2 2 3 . . 2 . 1 Data Loss (major) 2 | . . 2 . . . . . . . . . . . . Misfires 4 | . . . . . . . 1 1 2 . . . . . Alerts 5 | . . . 1 . . 1 1 . 1 . . 1 . . Misdirections 2 | . . . . . . 1 1 . . . . . . . Weapon Failures 1 | . . . . . . . . . 1 . . . . . Overload Shots 4 | . . . . . 4 . . . . . . . . . Overflow Damage 2599 | . 1 38 . . 663 . 460 87 . . 206 747 . 397 Projectiles 18 | . . 10 . . 8 . . . . . . . . . Explosions 225 | . 1 11 . . . . . . . . . 21 . 192 Melee 2356 | . . 17 . . 655 . 460 87 . . 206 726 . 205 Knockbacks 55 | . . . . . 9 . 5 . 3 . 7 17 . 14 Impact 20 | . . . . . 2 . 3 . . . 5 9 . 1 Kinetic 34 | . . . . . 7 . 2 . 3 . 2 8 . 12 Secondary 1 | . . . . . . . . . . . . . . 1 Self-Inflicted Damage 102 | . 60 9 . . . . . . . . . 6 . 27 Shots 5 | . 3 1 . . . . . . . . . . . 1 Rammed 6 | . 5 . . . . . . . . . . 1 . . Targets Rammed 6 | . 5 . . . . . . . . . . 1 . . Kicked . | . . . . . . . . . . . . . . . Crushed . | . . . . . . . . . . . . . . . Highest Temperature 371 | 210 251 236 84 . 306 . 305 184 30 . 22 187 309 371 Average Temperature 68 | 75 75 82 46 . 71 . 37 85 11 . 8 51 108 99 Received Heat Transfer 1255 | . 324 279 . . 232 . 9 . . . 30 144 . 237 Effects 7 | . . . . . 2 . . . . . . . . 5 Energy Bleed 2 | . . . . . 2 . . . . . . . . . Interference 3 | . . . . . . . . . . . . . . 3 Short Circuit 2 | . . . . . . . . . . . . . . 2 Siege Activations . | . . . . . . . . . . . . . . . Martial Activations . | . . . . . . . . . . . . . . . Shielding Activations . | . . . . . . . . . . . . . . . Robots Disrupted . | . . . . . . . . . . . . . . . Combat Hostiles . | . . . . . . . . . . . . . . . Robots Corrupted 26 | . . . . . 5 . 7 1 . . 2 9 . 2 Combat Hostiles 10 | . . . . . 1 . 1 . . . 2 5 . 1 Parts Fried 36 | . . . . . 10 . 11 2 . . . 6 . 7 Impact Corruptions 76 | . . . . . 14 . 14 3 . . 7 32 . 6 Robots Melted 1 | . . . . . 1 . . . . . . . . . Combat Hostiles 1 | . . . . . 1 . . . . . . . . . Parts Melted 3 | . . . . . 2 . . . . . . . . 1 Heat Transferred 3468 | 383 1184 407 37 . 857 . . . . . . 50 . 550 Parts Sabotaged . | . . . . . . . . . . . . . . . Parts Stolen . | . . . . . . . . . . . . . . . Parts Stripped . | . . . . . . . . . . . . . . . Power Chain Reactions 3 | 1 . . . . . . . . . . . 2 . . Alert | -11 -10 -10 -8 -8 -6 -6 -6 -6 -6 -6 -5 -5 -5 -5 ------- Run | Yrd Mat Sub Rec Scr Fac Was Fac Low Low Zio Pro Fac Was Fac Maximum Alert Level 3 | . . . . . 2 . 1 . . . . 2 1 3 Low Security (%) 74 | 100 100 . 100 . 75 100 97 . . . . 26 88 67 Level 1 20 | . . . . . 20 . 2 . . . . 68 11 3 Level 2 3 | . . . . . 3 . . . . . . 5 . 12 Level 3 1 | . . . . . . . . . . . . . . 16 Level 4 . | . . . . . . . . . . . . . . . Level 5 . | . . . . . . . . . . . . . . . High Security . | . . . . . . . . . . . . . . . Max Security . | . . . . . . . . . . . . . . . Peak Influence 1033 | 15 146 . 31 . 430 149 205 . . . . 577 200 1033 Initial 200 | . . . 10 . . 149 55 . . . . 123 200 84 Average 157 | 3 57 . 2 . 137 121 95 . . . . 294 161 320 Influence Increases 5700 | 60 584 205 40 . 1030 . 429 5 50 . 564 1261 . 1472 Destroy 0b10 Robot/C 2860 | . 380 120 . . 460 . 220 . 40 . 380 680 . 580 Destroy 0b10 Robot/NC 445 | 60 25 . . . 135 . 65 5 . . 5 65 . 85 Destroy Leader 598 | . 80 10 . . 140 . 68 . 10 . 60 114 . 116 Allied During Kill 44 | . . . . . . . . . . . 44 . . . Successful Hack 161 | . 13 . 9 . 114 . . . . . . 22 . 3 Select Force Hacks 60 | . 30 . 30 . . . . . . . . . . . Disable Machine 435 | . 15 . . . 105 . 15 . . . . 105 . 195 Anti-Garrison Action 150 | . . . . . . . . . . . . . . 150 Destroy Structure 377 | . 41 . 1 . 61 . 16 . . . . 80 . 178 Partial Spotted 15 | . . . . . . . . . . . . 15 . . Lose Combat Pursuer 555 | . . 75 . . 15 . 45 . . . 75 180 . 165 Influence Decreases 4682 | 60 472 294 63 . 604 347 355 158 50 . 367 885 453 574 Entered New Map 909 | . . 55 13 . . 277 24 57 . . . 74 373 36 Time Decay 3243 | 60 442 219 50 . 594 30 331 101 50 . 317 571 80 398 Lost Part 320 | . 30 20 . . 10 20 . . . . 10 90 . 140 Lost Ally 60 | . . . . . . 20 . . . . 40 . . . Purge Threat 150 | . . . . . . . . . . . . 150 . . Squads Dispatched 51 | . 4 . . . 20 . 10 . . . . 6 . 11 Investigation 27 | . 4 . . . 13 . 3 . . . . 3 . 4 Extermination 13 | . . . . . 5 . 2 . . . . 3 . 3 Reinforcement 7 | . . . . . 2 . 4 . . . . . . 1 Assault 3 | . . . . . . . . . . . . . . 3 Garrison 1 | . . . . . . . 1 . . . . . . . Intercept . | . . . . . . . . . . . . . . . Searches Triggered . | . . . . . . . . . . . . . . . Construction Impeded 2 | . . . . . . . 1 . . . . . . 1 Haulers Reinforced 1 | . . . . . 1 . . . . . . . . . Active Scanning Responses . | . . . . . . . . . . . . . . . Cargo Convoy Interrupts . | . . . . . . . . . . . . . . . Stealth | -11 -10 -10 -8 -8 -6 -6 -6 -6 -6 -6 -5 -5 -5 -5 --------- Run | Yrd Mat Sub Rec Scr Fac Was Fac Low Low Zio Pro Fac Was Fac Distress Signals 4 | . . . . . . . 1 . . . . 2 . 1 Communications Jammed . | . . . . . . . . . . . . . . . Distress Signals . | . . . . . . . . . . . . . . . Times Spotted 231 | . 24 20 . . 35 6 20 . 2 . 17 50 . 57 Peak Tracking Total 11 | . 4 6 . . 3 6 4 . 1 . 4 6 . 11 Tactical Retreats 22 | . . 2 . . 1 1 1 . . . 4 7 . 6 Traps | -11 -10 -10 -8 -8 -6 -6 -6 -6 -6 -6 -5 -5 -5 -5 ------- Run | Yrd Mat Sub Rec Scr Fac Was Fac Low Low Zio Pro Fac Was Fac Traps Triggered 11 | . 3 1 . . 1 . . . . . . 3 . 3 Indirectly . | . . . . . . . . . . . . . . . Trap Hack Attempts 27 | . . . . . 27 . . . . . . . . . Triggered . | . . . . . . . . . . . . . . . Disarmed . | . . . . . . . . . . . . . . . Reprogrammed 1 | . . . . . 1 . . . . . . . . . Reused . | . . . . . . . . . . . . . . . Traps Extracted . | . . . . . . . . . . . . . . . Installed 1 | . . . . . . . . . . . . 1 . . Triggered . | . . . . . . . . . . . . . . . Most Traps Carried 1 | . . . . 1 . . . . . . 1 1 . . Machines | -11 -10 -10 -8 -8 -6 -6 -6 -6 -6 -6 -5 -5 -5 -5 ---------- Run | Yrd Mat Sub Rec Scr Fac Was Fac Low Low Zio Pro Fac Was Fac Machines Disabled 35 | . 2 4 . . 7 . 1 . . . . 7 . 14 Max in Single Turn 5 | . 1 3 . . 3 . 1 . . . . 3 . 5 Garrison Access 4 | . . . . . 2 . . . . . . 1 . 1 Machines Repaired 3 | . . . . . 1 . . . . . . 1 . 1 Machines Dismantled . | . . . . . . . . . . . . . . . Machines Sabotaged . | . . . . . . . . . . . . . . . Overloaded Fab Kills . | . . . . . . . . . . . . . . . Hacking | -11 -10 -10 -8 -8 -6 -6 -6 -6 -6 -6 -5 -5 -5 -5 --------- Run | Yrd Mat Sub Rec Scr Fac Was Fac Low Low Zio Pro Fac Was Fac Machines Accessed 69 | . 5 3 6 5 26 . 4 . 2 1 . 9 . 8 Terminals 26 | . 3 . 5 . 11 . 1 . 1 . . 4 . 1 Fabricators 7 | . . . . . 4 . . . . . . 2 . 1 Repair Stations 6 | . 1 . . . 2 . . . . . . 2 . 1 Recycling Units 12 | . 1 . 1 . 5 . 2 . . . . . . 3 Scanalyzers 3 | . . . . . 1 . . . . . . . . 2 Garrison Access 5 | . . . . . 3 . 1 . . . . 1 . . Total Hacks 160 | . 17 4 13 14 53 . 7 . 3 4 . 22 . 23 Successful 100 | . 8 4 9 14 26 . 2 . 3 4 . 18 . 12 Failed 58 | . 8 . 3 . 27 . 5 . . . . 4 . 11 Catastrophic 13 | . 1 . 1 . 8 . 2 . . . . . . 1 Database Lockouts 2 | . 1 . 1 . . . . . . . . . . . Manual 70 | . 15 . 12 . 23 . 4 . . . . 9 . 7 Terminals 55 | . 11 . 12 . 19 . 1 . 2 . . 7 . 3 Fabricators 22 | . . . . . 13 . . . . . . 7 . 2 Repair Stations 19 | . 3 . . . 6 . . . . . . 7 . 3 Recycling Units 18 | . 3 . 1 . 6 . 4 . . . . . . 4 Scanalyzers 16 | . . . . . 5 . . . . . . . . 11 Garrison Access 7 | . . . . . 4 . 2 . . . . 1 . . Terminal Hacks 38 | . 3 4 2 14 4 . . . 3 4 . 4 . . Record 13 | . . 1 . 10 . . . . 2 . . . . . Part Schematic 10 | . . . . . 3 . . . . 4 . 3 . . Robot Analysis 8 | . 3 . 2 3 . . . . . . . . . . Open Door 2 | . . 1 . . . . . . 1 . . . . . Alert Level 1 | . . . . . 1 . . . . . . . . . Unreport Threat 1 | . . . . . . . . . . . . 1 . . Proto ID Catalog 2 | . . 1 . 1 . . . . . . . . . . Release Object 1 | . . 1 . . . . . . . . . . . . Fabricator Hacks 10 | . . . . . 6 . . . . . . 4 . . Load Schematic 5 | . . . . . 3 . . . . . . 2 . . Build 5 | . . . . . 3 . . . . . . 2 . . Repair Station Hacks 13 | . 2 . . . 4 . . . . . . 6 . 1 Scan Component 7 | . 1 . . . 2 . . . . . . 3 . 1 Repair 6 | . 1 . . . 2 . . . . . . 3 . . Recycling Unit Hacks . | . . . . . . . . . . . . . . . Scanalyzer 9 | . . . . . 2 . . . . . . . . 7 Insert Component 3 | . . . . . 1 . . . . . . . . 2 Analyze 3 | . . . . . 1 . . . . . . . . 2 Retrieve Study 3 | . . . . . . . . . . . . . . 3 Garrison Access Hacks 3 | . . . . . 2 . . . . . . 1 . . Seal Access 3 | . . . . . 2 . . . . . . 1 . . Unauthorized Hacks 26 | . 2 . 7 . 8 . 2 . . . . 3 . 4 Terminals 12 | . 1 . 6 . 2 . . . . . . 2 . 1 Assimilate 1 | . . . . . 1 . . . . . . . . . Botnet 6 | . 1 . 1 . 1 . . . . . . 2 . 1 Skim 5 | . . . 5 . . . . . . . . . . . Fabricators 3 | . . . . . 2 . . . . . . 1 . . Prioritize 3 | . . . . . 2 . . . . . . 1 . . Repair Stations . | . . . . . . . . . . . . . . . Recycling Units 11 | . 1 . 1 . 4 . 2 . . . . . . 3 Tunnel 2 | . 1 . 1 . . . . . . . . . . . Fedlink 8 | . . . . . 4 . 2 . . . . . . 2 Scraphulk 1 | . . . . . . . . . . . . . . 1 Scanalyzers . | . . . . . . . . . . . . . . . Garrison Access . | . . . . . . . . . . . . . . . Data Cores Recovered 1 | . . . . . . . . . . . . . . 1 Used . | . . . . . . . . . . . . . . . Hacking Detections 34 | . 4 . 3 . 16 . 2 . 1 . . 4 . 4 Full Trace Events 16 | . 2 . . . 9 . 1 . . . . 3 . 1 Feedback Events . | . . . . . . . . . . . . . . . Feedback Blocked . | . . . . . . . . . . . . . . . Robot Schematics Acquired 2 | . . . . . . . . . . 2 . . . . Robots Built . | . . . . . . . . . . . . . . . Authchips . | . . . . . . . . . . . . . . . Time . | . . . . . . . . . . . . . . . Total Robot Build Rating . | . . . . . . . . . . . . . . . Part Schematics Acquired 69 | . . . . 14 16 . 6 . 2 26 . 4 . 1 Parts Built 9 | . . . . . 5 . . . . . . 4 . . Authchips . | . . . . . . . . . . . . . . . Time 323 | . . . . . 159 . . . . . . 164 . . Total Part Build Rating 56 | . . . . . 30 . . . . . . 26 . . Part Studies Acquired 3 | . . . . . . . . . . . . . . 3 Parts Repaired 6 | . 1 . . . 2 . . . . . . 3 . . Time 262 | . 26 . . . 96 . . . . . . 140 . . Parts Recycled . | . . . . . . . . . . . . . . . Recycled Matter . | . . . . . . . . . . . . . . . Retrieved Matter . | . . . . . . . . . . . . . . . Retrieved Components . | . . . . . . . . . . . . . . . Parts Scanalyzed 3 | . . . . . 1 . . . . . . . . 2 Part Schematics Acquired 2 | . . . . . 1 . . . . . . . . 1 Parts Damaged 1 | . . . . . 1 . . . . . . . . . Bothacking | -11 -10 -10 -8 -8 -6 -6 -6 -6 -6 -6 -5 -5 -5 -5 ------------ Run | Yrd Mat Sub Rec Scr Fac Was Fac Low Low Zio Pro Fac Was Fac Used RIF Installer . | . . . . . . . . . . . . . . . Robots Hacked 1 | . . . . . 1 . . . . . . . . . Non-combat 1 | . . . . . 1 . . . . . . . . . Combat . | . . . . . . . . . . . . . . . Robot Hacks Applied 1 | . . . . . 1 . . . . . . . . . find_chute 1 | . . . . . 1 . . . . . . . . . Relay Couplers Released 1 | . . . . . . . . . . . . . . 1 Machine Destruction 1 | . . . . . . . . . . . . . . 1 Fabnet Peak Effective % . | . . . . . . . . . . . . . . . Robots Rewired . | . . . . . . . . . . . . . . . Allies Hacked . | . . . . . . . . . . . . . . . Hacks Repelled . | . . . . . . . . . . . . . . . Allies | -11 -10 -10 -8 -8 -6 -6 -6 -6 -6 -6 -5 -5 -5 -5 -------- Run | Yrd Mat Sub Rec Scr Fac Was Fac Low Low Zio Pro Fac Was Fac Total Allies 6 | . . . . . . 1 . . . 5 . . . . Largest Group 5 | . . . . . . 1 . . . 5 5 . . . Highest-Rated Group 124 | . . . . . . 31 . . . 124 124 . . . Highest-Rated Ally 31 | . . . . . . 31 . . . 31 31 . . . Initial UFD Resources 48 | . . . . . 24 42 42 46 46 46 48 48 48 48 Total Orders 8 | . . . . . . . . . . . . 4 . 4 RETURN 8 | . . . . . . . . . . . . 4 . 4 Ally Attacks 49 | . . . . . . 9 . . . . 40 . . . Total Damage 1013 | . . . . . . 167 . . . . 846 . . . Kills 5 | . . . . . . . . . . . 5 . . . Allies Corrupted 1 | . . . . . . . . . . . 1 . . . Allies Melted . | . . . . . . . . . . . . . . . Intel | -11 -10 -10 -8 -8 -6 -6 -6 -6 -6 -6 -5 -5 -5 -5 ------- Run | Yrd Mat Sub Rec Scr Fac Was Fac Low Low Zio Pro Fac Was Fac Active Infowar (turns) 9379 | 17 526 . . . 2395 67 777 468 464 932 926 1676 173 958 Optics 8317 | . . . . . 1876 67 777 468 464 932 926 1676 173 958 Sensors 7370 | . . . . . 2180 67 777 468 464 932 926 1217 173 166 Terrain 1 | . . . . . . . . . . . . 1 . . Seismic 543 | 17 526 . . . . . . . . . . . . . Robot Analysis Total 8 | . 3 . 2 3 . . . . . . . . . . Derelict Logs Recovered 13 | . . 1 . 5 . . . 2 3 1 1 . . . Drone Launches 8 | . . . . . . . . . . . . 4 . 4 Drone Recoveries 8 | . . . . . . . . . . . . 4 . 4 Exploration | -11 -10 -10 -8 -8 -6 -6 -6 -6 -6 -6 -5 -5 -5 -5 ------------- Run | Yrd Mat Sub Rec Scr Fac Was Fac Low Low Zio Pro Fac Was Fac Turns Passed 18872 | 251 1637 3147 609 4238 2502 67 777 468 464 932 926 1723 173 958 Spaces Moved 15377 | 25 628 1777 269 2049 2330 108 1057 861 765 1460 1232 1721 189 906 Core . | . . . . . . . . . . . . . . . Treads 551 | 2 548 1 . . . . . . . . . . . . Legs 23 | 23 . . . . . . . . . . . . . . Wheels 5179 | . 80 1776 269 2049 1005 . . . . . . . . . Hover 9624 | . . . . . 1325 108 1057 861 765 1460 1232 1721 189 906 Flight . | . . . . . . . . . . . . . . . Fastest Speed 38 | 120 110 95 167 80 38 47 49 49 51 51 51 47 53 53 Average Speed 88 | 123 155 148 177 165 70 51 49 50 51 51 54 57 53 63 Slowest Speed 480 | 160 240 395 179 380 480 63 63 51 51 51 56 147 53 220 Overloaded Moves . | . . . . . . . . . . . . . . . Propulsion Burnouts . | . . . . . . . . . . . . . . . Robots Hopped . | . . . . . . . . . . . . . . . Potential Cave-ins . | . . . . . . . . . . . . . . . Cave-ins Triggered . | . . . . . . . . . . . . . . . Exploration Rate (%) 66 | 3 94 76 49 90 61 99 35 90 80 87 88 28 87 28 Regions Visited 14 Branch Regions 7 Pre-discovered Areas 12 | . 1 . 6 2 1 . . . . 2 . . . . Known Exits Taken 5 | . . . . . . . 1 1 1 1 1 . . . Unknown Exits Taken 5 | 1 1 1 1 1 . . . . . . . . . . Scrap Searched 22 | . . 3 . 2 . . . 6 3 4 4 . . . Spaces Dug 87 | . . 7 . . 25 . 15 9 6 . 5 7 . 13 Terrain Destroyed 440 | 5 39 68 1 . 71 . 15 9 6 . 88 33 . 105 Melee 84 | . . 6 . . 23 . 15 9 6 . 5 7 . 13 Projectile 13 | . . 1 1 . 8 . . . . . . . . 3 AOE 343 | 5 39 61 . . 40 . . . . . 83 26 . 89 Terrain Rammed . | . . . . . . . . . . . . . . . Walls Destroyed . | . . . . . . . . . . . . . . . Machines Disabled . | . . . . . . . . . . . . . . . Actions | -11 -10 -10 -8 -8 -6 -6 -6 -6 -6 -6 -5 -5 -5 -5 --------- Run | Yrd Mat Sub Rec Scr Fac Was Fac Low Low Zio Pro Fac Was Fac Total 19365 | 204 1167 2140 401 2908 2918 117 1196 876 817 1647 1383 2216 247 1128 Wait 2600 | 151 438 163 124 820 274 8 34 . 28 165 41 237 39 78 Move 15365 | 24 627 1776 268 2048 2330 107 1056 860 764 1459 1231 1721 188 906 Hop . | . . . . . . . . . . . . . . . Pick Up 105 | 1 10 31 2 14 15 1 4 2 2 6 2 12 2 1 Fast Attach 70 | 1 2 9 . 6 16 . 5 1 . 4 5 15 . 6 Attach 58 | 3 4 4 . 1 16 . 2 . . . 3 14 1 10 Detach 33 | . 1 1 2 . 10 . . . . 1 2 8 . 8 Swap 112 | . 15 13 . 2 40 . 1 . . 2 . 26 . 13 Drop 103 | 3 . 21 4 17 19 . 5 3 4 9 6 9 2 1 Fire 559 | 21 65 55 1 . 87 . 54 . 13 . 74 93 15 81 Melee 295 | . . 53 . . 76 1 35 10 6 1 19 72 . 22 Ram 1 | . . . . . . . . . . . . 1 . . Kick . | . . . . . . . . . . . . . . . Crush 5 | . 5 . . . . . . . . . . . . . Escape Stasis . | . . . . . . . . . . . . . . . Rewire . | . . . . . . . . . . . . . . . Trap 28 | . . . . . 27 . . . . . . 1 . . Miscellaneous 31 | . . 14 . . 8 . . . . . . 7 . 2 Route ------- -11/Scrapyard -10/Materials (discovered 5 exits: [*Mat x3] / [*Min] / *Sub) -10/Subcaves (discovered 4 exits: [*Mat x2] / *Rec / *Scr) -8/Recycling -8/Scraptown (discovered 2 exits: *Fac x2) -6/Factory (discovered 4 exits: *Fac x2 / *Low x2) -6/Waste -6/Factory -6/Lower Caves -6/Lower Caves (discovered 2 exits: *Fac / *Zio) -6/Zion (discovered 2 exits: Dee / *Pro) -5/Proximity Caves -5/Factory (discovered 4 exits: *Fac x2 / *Upp / Ext) -5/Waste -5/Factory (discovered 2 exits: *Fac / *Upp) History --------- Turn | Location | Event 17 | -11/Scrapyard | Discovered new exit (range 2) 252 | -11/Scrapyard | Entered Materials 292 | -10/Materials | Central database locked down 308 | -10/Materials | Build established: Mutant 505 | -10/Materials | Discovered new exit (range 8) 536 | -10/Materials | Repaired Lgt. Treads 837 | -10/Materials | Discovered new exit (range 15) 895 | -10/Materials | Discovered new exit (range 15) 1020 | -10/Materials | Discovered new exit (range 10) 1336 | -10/Materials | Discovered new exit (range 5) 1889 | -10/Materials | Entered Subcaves 1890 | -10/Subcaves | Approached by a straggling Scientist 1935 | -10/Subcaves | Discovered new exit (range 16) 2346 | -10/Subcaves | Disturbed a concealed Subdweller 2359 | -10/Subcaves | Core integrity fell below 50% 2472 | -10/Subcaves | Visited 4L-MR0's lab 2534 | -10/Subcaves | A swath of the cavern ceiling suddenly collapsed 2664 | -10/Subcaves | Build established: Subdweller-Mutant 2907 | -10/Subcaves | A swath of the cavern ceiling suddenly collapsed 2975 | -10/Subcaves | Discovered new exit (range 16) 3434 | -10/Subcaves | Core integrity fell below 20% 3586 | -10/Subcaves | Discovered new exit (range 16) 4014 | -10/Subcaves | Found SUBCON Basin 4099 | -10/Subcaves | Build established: Hauler-Mutant 4658 | -10/Subcaves | Found Prototype Device 4662 | -10/Subcaves | Found Gun Armor 5036 | -10/Subcaves | Entered Recycling 5469 | -8/Recycling | Scanned before Scraplab entrance 5495 | -8/Recycling | Learned location of Extension (-5) 5536 | -8/Recycling | Learned location of Zion (-6) 5600 | -8/Recycling | Learned Factory emergency access door positions 5618 | -8/Recycling | Entered Scraplab 5622 | -8/Recycling | Learned location of Storage (-8) 5643 | -8/Recycling | Discovered new exit (range 2) 5645 | -8/Recycling | Entered Scraptown 5645 | -8/Scraptown | System corruption cleaned by C-Scrubber 6047 | -8/Scraptown | Discovered new exit (range 11) 6279 | -8/Scraptown | Scanned Subdweller tech in exchange for log data 6287 | -8/Scraptown | Learned Factory garrison access intel 6291 | -8/Scraptown | Learned Factory emergency access door positions 6298 | -8/Scraptown | Learned Factory terminal intel 6302 | -8/Scraptown | Learned Factory non-interactive machine intel 6530 | -8/Scraptown | Visited UFD Registry 6530 | -8/Scraptown | Registered with UFD as "Powertorch" 6819 | -8/Scraptown | Guru changed UFD alias to "Pulsewalker" 7070 | -8/Scraptown | Visited SPCMW 7153 | -8/Scraptown | Visited Cyclists 7184 | -8/Scraptown | Entered Cyclist Reading Room 7263 | -8/Scraptown | Identified Sfc. Transmogrifier 7450 | -8/Scraptown | Heard Great Nut preacher, LISTEN AND RECITE! 7452 | -8/Scraptown | Visited Spacefarers 7573 | -8/Scraptown | Build established: Mutant 7664 | -8/Scraptown | Visited Abandonware Association 7671 | -8/Scraptown | Learned abandonware demo "OVRCLOCK.EXE" 7675 | -8/Scraptown | Learned abandonware demo "POISON.EXE" 7698 | -8/Scraptown | Visited LU-1G1's Boring Crew 7713 | -8/Scraptown | Visited Infowarlord's Domain 7821 | -8/Scraptown | Visited A0-MCA Data Center 7829 | -8/Scraptown | Given a C+ rating by A0-MCA 7850 | -8/Scraptown | Visited Analyses Database 7874 | -8/Scraptown | Visited Scrap Suit Storage 7884 | -8/Scraptown | Visited Science Guys 8043 | -8/Scraptown | Visited Chapter 10 8080 | -8/Scraptown | Tech Extrapolator generated special schematic: Deep Structural Scanner 8161 | -8/Scraptown | Visited Junk Repository 8192 | -8/Scraptown | Visited Derelict Rescue Squad 8801 | -8/Scraptown | Tech Extrapolator generated special schematic: Machine Rigger 9186 | -8/Scraptown | Visited TADAMA 9519 | -8/Scraptown | Found Exp. Sensor Array 9777 | -8/Scraptown | Found A0-MCA's Component Scanner 9817 | -8/Scraptown | Met Optimus 9817 | -8/Scraptown | Accepted into 0bPrime 9880 | -8/Scraptown | Discovered new exit (range 3) 9883 | -8/Scraptown | Entered Factory 9883 | -6/Factory | Evolved 8 slots: Propulsion x3, Utility x5 9885 | -6/Factory | Loaded intel: 200 non-interactive machine locations 9886 | -6/Factory | Loaded intel: 26 terminal locations 9887 | -6/Factory | Loaded intel: 4 garrison access locations 10009 | -6/Factory | Loaded intel: 8 recycling unit locations 10256 | -6/Factory | Fabricated Hyp. Gauss Cannon? 10588 | -6/Factory | Learned location of Protoforge (-3) 10645 | -6/Factory | Discovered new exit (range 13) 10751 | -6/Factory | Fabricated Imp. Powered Armor? 10975 | -6/Factory | Discovered new exit (range 9) 11001 | -6/Factory | Identified exit to Lower Caves 11412 | -6/Factory | Tech Extrapolator generated special schematic: Energy Deflector 11594 | -6/Factory | Repaired Broken Exp. Sensor Array? 11655 | -6/Factory | Discovered exit to Lower Caves (range 22) 11691 | -6/Factory | Fabricated Cmb. Gravmag System (x2) 11987 | -6/Factory | Build established: Machinist-Scout 11993 | -6/Factory | Discovered new exit (range 22) 12023 | -6/Factory | Identified exit to Factory 12370 | -6/Factory | Repaired Hyp. Gauss Cannon 12385 | -6/Factory | Sucked down chute 12385 | -6/Factory | Entered Waste 12386 | -6/Waste | Met a frightened Derelict 12394 | -6/Waste | Spotted C-40 Crusher 12398 | -6/Waste | Spotted C-40 Crusher 12398 | -6/Waste | Spotted C-40 Crusher 12400 | -6/Waste | EMP discharged 12400 | -6/Waste | System corruption reached 10% 12422 | -6/Waste | Spotted C-40 Crusher 12426 | -6/Waste | Spotted C-40 Crusher 12426 | -6/Waste | Spotted C-40 Crusher 12429 | -6/Waste | Crushed by Compactor (1 part destroyed, 1 dropped) 12438 | -6/Waste | Crushed by Compactor (1 part destroyed, 1 dropped) 12446 | -6/Waste | Discovered new exit (range 11) 12451 | -6/Waste | Identified exit to Factory 12452 | -6/Waste | Entered Factory 12536 | -6/Factory | Loaded intel: 8 recycling unit locations 12723 | -6/Factory | Build established: Scout 12829 | -6/Factory | Garrison activated, responded to threat 13018 | -6/Factory | Discovered exit to Lower Caves (range 4) 13229 | -6/Factory | Entered Lower Caves 13412 | -6/Lower Caves | Learned Factory non-interactive machine intel 13427 | -6/Lower Caves | Discovered new exit (range 12) 13429 | -6/Lower Caves | Learned Factory terminal intel 13490 | -6/Lower Caves | Identified exit to Lower Caves 13697 | -6/Lower Caves | Entered another Lower Caves area 13717 | -6/Lower Caves | Attracted the attention of an 0b10 checkpoint 13794 | -6/Lower Caves | Discovered exit to Factory (range 6) 13958 | -6/Lower Caves | Learned location of 1 exit from Factory 14062 | -6/Lower Caves | Learned Factory terminal intel 14070 | -6/Lower Caves | Learned 4 Factory zone layouts 14131 | -6/Lower Caves | Found Prototype Device 14157 | -6/Lower Caves | Discovered new exit (range 5) 14158 | -6/Lower Caves | Identified exit to Zion 14161 | -6/Lower Caves | Entered Zion 14168 | -6/Zion | Given the Hacking Drone Bay 14170 | -6/Zion | Found Prototype Device 14184 | -6/Zion | System corruption cleaned by Quarantine Array 14198 | -6/Zion | Discovered new exit (range 10) 14261 | -6/Zion | Identified exit to Deep Caves 14282 | -6/Zion | Visited the Megawrench Repair Shop 14327 | -6/Zion | Found Prototype Launcher 14327 | -6/Zion | Identified Gui. Missile Launcher 14343 | -6/Zion | Tech Extrapolator generated special schematic: Active Sensor Spoofer 14416 | -6/Zion | Turned away by Imprinter 14522 | -6/Zion | Identified Hacking Drone Bay 14639 | -6/Zion | Megawrench repaired 11 parts 14647 | -6/Zion | Tech Extrapolator generated special schematic: Heat Bomb Trap 14860 | -6/Zion | Gained Derelict followers 15065 | -6/Zion | Identified exit to Proximity Caves 15093 | -6/Zion | Entered Proximity Caves 15093 | -5/Proximity Caves | Accompanied by 5 allies 15149 | -5/Proximity Caves | Spotted B-75 Beast 15191 | -5/Proximity Caves | Allies destroyed B-75 Beast 15220 | -5/Proximity Caves | Lost 3 allies 15334 | -5/Proximity Caves | Attracted the attention of an 0b10 checkpoint 16019 | -5/Proximity Caves | Entered Factory 16019 | -5/Factory | Evolved 2 slots: Power x1, Propulsion x1 16020 | -5/Factory | Identified exit to Extension 16021 | -5/Factory | Identified exit to Factory 16022 | -5/Factory | Identified exit to Upper Caves 16023 | -5/Factory | Loaded intel: 241 non-interactive machine locations 16024 | -5/Factory | Loaded intel: 25 terminal locations 16493 | -5/Factory | Fabricated Hyp. Gauss Cannon (x2) 16789 | -5/Factory | Lost 5 parts (3n1u1w) 17099 | -5/Factory | Build established: Hacker-Scout 17145 | -5/Factory | Discovered exit to Factory (range 10) 17175 | -5/Factory | Repaired Hyp. Gauss Cannon 17315 | -5/Factory | Repaired Cmb. Gravmag System 17583 | -5/Factory | Repaired Cmb. Gravmag System 17667 | -5/Factory | Fabricated Hyp. Mass Driver (x2) 17742 | -5/Factory | Sucked down chute 17742 | -5/Factory | Entered Waste 17742 | -5/Waste | The area was eerily silent 17890 | -5/Waste | Discovered new exit (range 22) 17915 | -5/Waste | Identified exit to Factory 17915 | -5/Waste | Entered Factory 17916 | -5/Factory | Loaded intel: 27 terminal locations 18213 | -5/Factory | Loaded intel: 8 recycling unit locations 18638 | -5/Factory | Destroyed 8 combat bots 18662 | -5/Factory | Lost 3 parts (2n1u) 18707 | -5/Factory | Lost 3 parts (1p1n1w) 18719 | -5/Factory | Core integrity fell below 50% 18756 | -5/Factory | Discovered exit to Upper Caves (range 18) 18815 | -5/Factory | First assault squad dispatched 18842 | -5/Factory | Spotted B-75 Beast 18845 | -5/Factory | Discovered exit to Factory (range 7) 18873 | -5/Factory | Self-destructed Last Messages --------------- 18856_ S-27 Virus system terminally corrupted. 18859_ U-05 Engineer lays Concrete. 18863_ B-60 Warrior suffers critical hit (Smash). 18863_ Destroyed Hvy. Mace. 18863_ B-60 Warrior system corrupted by crushing effect. 18864_ U-05 Engineer lays Concrete. 18864_ Recycling Unit disabled. 18864_ HERF Cannon tumbles out of recycling unit. 18865_ Slug penetrates Wall. 18865_ U-05 Engineer lays Concrete. 18867_ Cmb. Gravmag System+ destroyed. 18868_ Penetrated by Slug. 18868_ U-05 Engineer builds a Wall. 18870_ Linear Gravjet destroyed. 18871_ System corrupted: Matter fused (-5). 18871_ Penetrated by Slug. 18871_ Mic. Fission Core+ destroyed. Map ----- +----------------------------------------------------+ | ?????????????????????????????? | | ?????????????????????????????? | | ?????????????????????????????? | | ?????????????????????????????? | | ?????????????????????????????? | | ?????????????????????????????? | | ?????????????????????????????? | | ????????? ????????????????? | | ????????? ???????????????? | | ????????? ?????????????? | | ????????? #?????????????? | | ????????# #?????????????? | | ????????# #?????????????? | | ????????# #?????????????? | | ????????# #?????????????? | | ????????# #?????????????? | | ????????# #?????????????? | | ????????# ##########????? | | ????????# ???? | | ?###????# ??? | | ?#;###### """ """ """ [[??? | | ?#% % # """ """ """ [[ ?? | | ?#""bh # """ """ """ [[ ? | | ?#"Y%] # ! | | ?#""" ; """ """ """ | | ?# @ [; " F" """ """ """ | | ?# ] ; BB""" """ """ """ | | ?#####+#;bBB | | ?????# u | | ?????# #### # ###### | | ?????# #?## #? #????###### | | ?????# #??# #????????##### | | ????? ??# ########## | | ????? ??# | | ????? < ??# " | | ????? ??# | | ????? ?# ##+####### | | ?????#+##?####### ????##### | | ????????????????# ??????? | | ????????????????# #????? | | ????????????????#= #????? | | ????????????????# #????? | | ????????????????# """ #????? | | ????????????????# """ #????? | | ????????????????? """ #????? | | ?????????????????########????? | | | | | | | | | +----------------------------------------------------+ Best States ------------- Heat Dissipation 71 Coolant Potential 50 Energy Generation 29 Energy Capacity 365 Matter Stores 300 Matter Capacity 300 Sight Range 22 Robot Scan Range 20 Terrain Scan Density 10 Armor Coverage 800 Evasion (%) 57 Targeting Accuracy 8 Recoil Reduction 2 Matter Filtering 30 Offensive Hacking 12 Defensive Hacking 14 Item Schematics ----------------- Spk. Treads | -8/Scraptown | Extrapolated Lgt. Humpback | -8/Scraptown | Extrapolated 0b10 Decoder Chip [Skirmisher] | -8/Scraptown | Extrapolated Deep Structural Scanner | -8/Scraptown | Extrapolated Mak. Trap Scanner | -8/Scraptown | Extrapolated Mak. Coolant Network | -8/Scraptown | Extrapolated 0b10 Decoder Chip [Generic] | -8/Scraptown | Extrapolated 0b10 Decoder Chip [Looter] | -8/Scraptown | Extrapolated 0b10 Decoder Chip [Scout] | -8/Scraptown | Extrapolated Tactical Coordination Suite | -8/Scraptown | Extrapolated Mak. Medium Armor Plating | -8/Scraptown | Extrapolated Mak. Ablative Armor | -8/Scraptown | Extrapolated Machine Rigger | -8/Scraptown | Extrapolated Hvy. Beamcaster | -8/Scraptown | Extrapolated Mak. Terrain Scanner | -6/Factory | Extrapolated Hyp. Gauss Cannon | -6/Factory | Hacked Mak. Power Source | -6/Factory | Extrapolated Multitool | -6/Factory | Extrapolated Beamcaster | -6/Factory | Extrapolated Imp. Powered Armor | -6/Factory | Hacked Spk. Medium Treads | -6/Factory | Extrapolated Mak. Shrapnel Gun | -6/Factory | Extrapolated Bore Cannon | -6/Factory | Extrapolated Mak. Targeting Computer | -6/Factory | Extrapolated Slug Cannon | -6/Factory | Extrapolated Energy Deflector | -6/Factory | Extrapolated Cmb. Gravmag System | -6/Factory | Hacked Exp. Sensor Array | -6/Factory | Scanalyzed Mak. Terrain Scan Processor | -6/Factory | Extrapolated Mak. Axe | -6/Factory | Extrapolated Spk. Heavy Treads | -6/Factory | Extrapolated Mak. Sensor Array | -6/Factory | Extrapolated Mak. System Shield | -6/Factory | Extrapolated Mak. ECM Suite | -6/Factory | Extrapolated Mak. Hammer | -6/Factory | Extrapolated Mak. Hacking Suite | -6/Factory | Extrapolated Mak. Flight Unit | -6/Lower Caves | Extrapolated Mak. Propulsion Shielding | -6/Lower Caves | Extrapolated Mak. Thermal Plating | -6/Zion | Extrapolated Active Sensor Spoofer | -6/Zion | Extrapolated Angular Momentum Engine | -6/Zion | Archive Imp. Coolant Injector | -6/Zion | Archive Energy Well | -6/Zion | Archive Adv. Drone Bay | -6/Zion | Archive Imp. Trap Scanner | -6/Zion | Archive Point Defense System | -6/Zion | Archive Focal Shield | -6/Zion | Archive Impulse Thruster | -6/Zion | Archive Adv. Coolant Injector | -6/Zion | Archive Imp. Medium Treads | -6/Zion | Archive Adv. Plasma Cannon | -6/Zion | Archive Hyp. Gauss Rifle | -6/Zion | Archive Imp. Transmission Jammer | -6/Zion | Archive Adv. Shield Generator | -6/Zion | Archive EM Shield | -6/Zion | Archive Mak. Utility Shielding | -6/Zion | Extrapolated Riot Gun | -6/Zion | Free Enh. Flamer | -6/Zion | Free Plasma Flamer | -6/Zion | Free Hvy. Riot Gun | -6/Zion | Free Hvy. Battle Rifle | -6/Zion | Extrapolated Mak. Light Armor Plating | -6/Zion | Extrapolated Heat Bomb Trap | -6/Zion | Extrapolated Imp. KE Penetrator | -6/Zion | Archive Multireflex Exoskeleton | -5/Factory | Extrapolated Adv. System Restoration Module | -5/Factory | Hacked Hyp. Mass Driver | -5/Factory | Hacked Prc. Matter Filter | -5/Factory | Hacked Cmb. Linear Gravjet | -5/Factory | Scanalyzed Robot Schematics ------------------ A-15 Conveyor | -6/Zion | Archive R-10 Processor | -6/Zion | Archive Fabricated ------------ Hyp. Gauss Cannon | x2 | -6/Factory Imp. Powered Armor | x1 | -6/Factory Cmb. Gravmag System | x2 | -6/Factory Hyp. Gauss Cannon | x2 | -5/Factory Hyp. Mass Driver | x2 | -5/Factory Repaired ---------- Lgt. Treads | 6% | -10/Materials Exp. Sensor Array | 99% | -6/Factory | Broken Hyp. Gauss Cannon | 17% | -6/Factory Hyp. Gauss Cannon | 12% | -5/Factory Cmb. Gravmag System | 30% | -5/Factory Cmb. Gravmag System | 36% | -5/Factory Studied --------- Antigrav System | -5/Factory | Hacked Cmb. Gravmag System | -5/Factory | Hacked Mic. Fission Core | -5/Factory | Hacked Alien Tech Used ----------------- None Achievements -------------- None Challenges ------------ None Game ------ Seed TeslaStealthMallet Manual? 0 Play Time 02:47:03 Cumulative 586.9 hours Start 2026.07.02 @ 16:56:35 End 2026.07.03 @ 03:17:36 Sessions 9 Manual Loads 0 Difficulty Rogue Special Mode None Game No. 500 Rogue 464 Adventurer 36 Explorer 0 Win Type - Total 5 Types 2/0/0/1/0/0/0/2/0/0 Lore% 84 Gallery% 72 Achievement% 65 Wizard Run 0 Options --------- Layout 2 ASCII 0 Keyboard 0 Movement Numpad Keybinds 0 Fullscreen 1 Font 48/Smallcaps Map View 50x44 Zoom Use 0% Tactical HUD 1 Map Filters NONE Filters NONE Steam 1 RUN: f44f315b-a7cb-4191-a8d0-7bf8cd9b12c3